bitfinex/quotes_SOLUSD_20251202
["timestamp","ask_amount","ask_price","bid_price","bid_amount"]
[1764675761310,0.7,128.32,128.29,7.79483981]
[1764675762351,0.66,128.34,128.3,0.68]
[1764675762518,26.27784003,128.36,128.3,2.85820914]
[1764675762718,0.66,128.35,128.3,0.68]
[1764675762929,0.66,128.35,128.3,2.85820914]
[1764675763135,0.66,128.35,128.31,0.68]
[1764675763539,2.83820914,128.35,128.32,7.79301745]
[1764675764329,0.66,128.34,128.32,7.79301745]
[1764675764937,9.96819122,128.37,128.32,69.59301744]
[1764675765140,9.96819122,128.37,128.33,2.85820914]
[1764675765141,7.78998208,128.37,128.33,2.85820914]
[1764675765342,8.44998208,128.37,128.33,2.85820914]
[1764675765546,8.44998208,128.37,128.34,0.68]
[1764675766037,17.0295942,128.38,128.34,8.47169228]
[1764675767390,8.58,128.38,128.34,9.96990142]
[1764675767525,0.66,128.39,128.35,2.85820914]
[1764675768531,0.66,128.39,128.36,7.79058896]
[1764675769149,8.44899479,128.39,128.35,7.79098636]
[1764675769351,10.62720393,128.39,128.35,7.79098636]
[1764675769523,0.66,128.38,128.35,7.79098636]
[1764675772069,19.58815406,128.37,128.34,61.79999999]
[1764675772376,8.6,128.37,128.34,61.79999999]
[1764675772552,9.26,128.37,128.34,61.79999999]
[1764675772864,9.26,128.37,128.34,69.59179936]
[1764675773071,0.66,128.36,128.34,61.79999999]
[1764675774479,8.45062804,128.36,128.34,61.79999999]
[1764675774667,0.66,128.35,128.34,61.79999999]
[1764675774863,0.66,128.36,128.34,61.79999999]
[1764675777773,8.45064453,128.36,128.34,61.79999999]
[1764675778568,0.66,128.36,128.34,61.79999999]
[1764675779078,0.66,128.36,128.33,69.5923062]
[1764675779451,0.66,128.36,128.33,70.2723062]
[1764675780677,8.6,128.37,128.34,0.68]
[1764675780882,8.6,128.37,128.34,2.85820914]
[1764675781054,8.6,128.37,128.35,0.68]
[1764675781979,9.26,128.37,128.33,91.93154082]
[1764675782189,9.26,128.37,128.34,0.68]
[1764675782650,9.26,128.37,128.33,91.25154082]
[1764675782651,8.6,128.37,128.33,61.79999999]
[1764675782856,0.66,128.36,128.33,62.47999999]
[1764675783664,9.26,128.37,128.33,62.47999999]
[1764675784252,17.05041239,128.37,128.33,70.27216881]
[1764675786978,19.22862153,128.37,128.33,70.27216881]
[1764675787655,0.66,128.36,128.33,70.27216881]
[1764675788876,19.22862153,128.37,128.33,70.27216881]
[1764675789766,19.22862153,128.37,128.34,0.68]
[1764675793882,11.43820914,128.37,128.34,8.4716792]
[1764675794187,17.05011987,128.37,128.34,8.4716792]
[1764675796465,8.6,128.37,128.35,0.65]
[1764675797188,8.6,128.37,128.34,70.24167919]
[1764675798372,8.6,128.37,128.34,69.59167919]
[1764675798571,8.6,128.37,128.35,8.44113048]
[1764675798969,8.6,128.37,128.36,0.65]
[1764675801691,8.6,128.37,128.35,7.79113048]
[1764675801988,8.6,128.37,128.35,8.44113048]
[1764675802491,8.6,128.37,128.33,3.40369148]
[1764675802492,0.7,128.36,128.33,7.79183453]
[1764675802674,0.7,128.36,128.33,8.44183453]
[1764675802877,0.7,128.36,128.33,0.65]
[1764675803072,8.49095794,128.36,128.32,70.24271024]
[1764675803385,3.40369148,128.35,128.32,7.79271025]
[1764675803564,9.3,128.34,128.31,8.44329792]
[1764675803766,8.6,128.34,128.31,8.44329792]
[1764675804487,8.6,128.34,128.32,0.65]
[1764675804864,8.6,128.34,128.32,8.44300984]
[1764675807280,8.6,128.34,128.31,8.44362481]
[1764675807671,8.6,128.34,128.32,0.65]
[1764675808496,8.6,128.34,128.32,8.44295878]
[1764675809296,8.6,128.34,128.32,7.79295878]
[1764675809490,8.6,128.34,128.32,8.44295878]
[1764675810299,8.6,128.34,128.32,0.65]
[1764675811102,17.0919951,128.34,128.31,8.44330551]
[1764675811271,16.3919951,128.34,128.31,7.79330551]
[1764675811470,16.3919951,128.34,128.32,0.65]
[1764675812475,16.3919951,128.34,128.31,0.71]
[1764675813198,16.3919951,128.34,128.32,0.71]
[1764675816105,8.6,128.34,128.32,0.71]
[1764675816801,16.39191159,128.34,128.32,0.71]
[1764675817104,8.6,128.34,128.32,8.503017]
[1764675817499,8.6,128.34,128.33,0.71]
[1764675817700,8.6,128.38,128.33,73.80564955]
[1764675817907,9.3,128.38,128.33,73.80564955]
[1764675818082,9.3,128.38,128.34,0.71]
[1764675818400,8.6,128.38,128.34,0.71]
[1764675818906,16.38950097,128.38,128.34,8.50127677]
[1764675819293,16.38950097,128.38,128.35,0.71]
[1764675819496,17.08950097,128.38,128.35,0.71]
[1764675819804,8.6,128.38,128.35,0.71]
[1764675820902,8.6,128.38,128.35,8.5006861]
[1764675821099,8.6,128.38,128.36,0.71]
[1764675821403,8.6,128.38,128.36,62.61]
[1764675822206,16.38947695,128.38,128.36,61.9]
[1764675822416,20.49316843,128.38,128.36,61.9]
[1764675823101,19.79316843,128.38,128.36,62.57]
[1764675823617,19.79316843,128.38,128.36,61.9]
[1764675824117,8.6,128.38,128.37,0.67]
[1764675826411,17.297689,128.41,128.37,70.35998208]
[1764675826618,8.6,128.4,128.37,70.35998208]
[1764675826798,8.6,128.4,128.38,0.67]
[1764675827647,8.6,128.4,128.38,8.45923561]
[1764675828024,8.6,128.4,128.39,0.67]
[1764675829735,8.6,128.4,128.39,62.57]
[1764675833449,8.6,128.4,128.39,70.35876859]
[1764675837051,0.1,128.43,128.39,70.35876859]
[1764675837256,8.6,128.42,128.4,0.67]
[1764675837432,8.6,128.42,128.4,62.57]
[1764675838933,8.6,128.42,128.4,70.35810423]
[1764675841269,19.79070305,128.42,128.4,61.9]
[1764675841455,12.9136364,128.41,128.36,20.14601606]
[1764675841764,3.40369148,128.4,128.37,0.67]
[1764675841957,8.58,128.39,128.37,0.67]
[1764675842459,8.58,128.39,128.37,7.78998208]
[1764675842841,20.47256928,128.39,128.35,8.46119594]
[1764675843250,20.47256928,128.39,128.36,0.67]
[1764675843546,8.58,128.39,128.36,0.67]
[1764675844255,8.58,128.39,128.36,4.07369148]
[1764675844567,8.58,128.39,128.37,27.26493728]
[1764675844737,8.58,128.39,128.37,27.93493728]
[1764675844942,7.78695094,128.42,128.38,0.67]
[1764675845247,7.78695094,128.42,128.36,7.79044025]
[1764675845248,3.40369148,128.39,128.36,7.79044025]
[1764675845436,8.58,128.38,128.36,7.79044025]
[1764675845637,9.28,128.38,128.36,7.79044025]
[1764675845837,0.7,128.37,128.35,7.79108]
[1764675846049,0.7,128.37,128.34,0.67]
[1764675846761,0.7,128.37,128.34,8.46174632]
[1764675847061,4.10369148,128.37,128.34,8.46174632]
[1764675847241,0.7,128.37,128.34,8.46174632]
[1764675848353,0.7,128.37,128.34,70.36174632]
[1764675848751,8.80994492,128.37,128.34,70.36174632]
[1764675850852,16.5999375,128.37,128.34,70.36174632]
[1764675851055,8.58,128.38,128.34,69.69174632]
[1764675851245,8.58,128.38,128.35,0.67]
[1764675851640,9.28,128.38,128.35,0.67]
[1764675852061,17.06940552,128.38,128.35,0.67]
[1764675852269,20.473097,128.38,128.35,0.67]
[1764675853271,20.473097,128.38,128.35,62.57]
[1764675853473,12.68369148,128.38,128.35,62.57]
[1764675853695,12.68369148,128.38,128.35,70.36119288]
[1764675855548,20.47313856,128.38,128.35,70.36119288]
[1764675855751,20.47313856,128.38,128.35,62.57]
[1764675856488,19.2476501,128.38,128.35,62.57]
[1764675858895,19.2476501,128.38,128.35,62.57]
[1764675865002,9.50994492,128.37,128.35,61.9]
[1764675865207,8.6,128.36,128.33,70.34233535]
[1764675865498,8.6,128.36,128.34,0.65]
[1764675867383,8.6,128.36,128.32,70.34295873]
[1764675867384,2.17820302,128.35,128.32,70.34295873]
[1764675867595,8.6,128.34,128.33,0.65]
[1764675867795,8.6,128.34,128.32,0.65]
[1764675867989,8.6,128.34,128.33,0.65]
[1764675870183,16.39180302,128.34,128.33,0.65]
[1764675874315,8.6,128.34,128.33,0.65]
[1764675874888,16.39181985,128.34,128.32,0.68]
[1764675875094,16.39181985,128.34,128.33,0.68]
[1764675875304,16.39181985,128.34,128.32,0.68]
[1764675877015,16.39181985,128.34,128.32,62.58]
[1764675878411,16.39181985,128.34,128.33,0.68]
[1764675880728,8.6,128.34,128.33,0.68]
[1764675882225,18.57027263,128.34,128.31,8.50334712]
[1764675882400,18.57027263,128.34,128.32,0.71]
[1764675891339,10.77820302,128.34,128.32,0.71]
[1764675891546,18.57002848,128.34,128.32,0.71]
[1764675892145,16.39182546,128.34,128.32,0.71]
[1764675892445,8.6,128.34,128.32,0.71]
[1764675897043,16.3919335,128.34,128.32,0.71]
[1764675898234,8.6,128.34,128.32,8.50292916]
[1764675898647,8.6,128.34,128.33,0.71]
[1764675903250,10.77820302,128.34,128.32,8.50292916]
[1764675903451,10.77820302,128.34,128.33,0.71]
[1764675905168,10.77820302,128.34,128.32,69.69292916]
[1764675905459,10.77820302,128.34,128.33,0.71]
[1764675905768,8.6,128.34,128.33,0.71]
[1764675906646,10.77820302,128.34,128.33,0.71]
[1764675907963,8.6,128.34,128.33,0.71]
[1764675908369,7.79123346,128.35,128.33,0.71]
[1764675908561,8.6,128.34,128.33,0.71]
[1764675909757,8.6,128.34,128.33,62.61]
[1764675912561,8.6,128.34,128.33,70.40241019]
[1764675915378,8.6,128.36,128.33,89.88343567]
[1764675915572,18.56668239,128.4,128.34,2.82820302]
[1764675915765,8.6,128.39,128.34,64.72820302]
[1764675916075,8.6,128.39,128.36,7.79058896]
[1764675916607,8.6,128.39,128.37,0.65]
[1764675916882,8.6,128.39,128.37,62.55]
[1764675919376,8.6,128.39,128.38,0.65]
[1764675924877,19.46794351,128.42,128.38,0.65]
[1764675924878,8.80994492,128.42,128.38,11.8420148]
[1764675925182,0.1,128.43,128.4,3.40263951]
[1764675925483,8.68,128.43,128.41,3.40263951]
[1764675925989,8.68,128.43,128.42,0.65]
[1764675926186,8.68,128.43,128.42,8.43694907]
[1764675930487,8.68,128.43,128.42,70.33694907]
[1764675931263,0.1,128.43,128.42,70.33694907]
[1764675931480,0.1,128.43,128.42,73.73958858]
[1764675931680,0.1,128.43,128.42,73.88175015]
[1764675932185,0.1,128.43,128.42,96.72344458]
[1764675934972,0.1,128.43,128.42,73.88175015]
[1764675935691,0.1,128.43,128.42,77.00150992]
[1764675935886,0.1,128.43,128.42,73.59887041]
[1764675936090,0.1,128.43,128.42,77.00150992]
[1764675937084,0.1,128.43,128.42,100.71777373]
[1764675937285,0.1,128.43,128.42,77.00150992]
[1764675937802,0.1,128.43,128.42,73.45670884]
[1764675938097,0.1,128.43,128.42,73.73958858]
[1764675938979,0.1,128.43,128.42,73.88175015]
[1764675939180,0.1,128.43,128.42,77.00150992]
[1764675939883,0.1,128.43,128.42,100.46990112]
[1764675941108,0.1,128.43,128.42,109.04990112]
[1764675941313,1e-08,128.44,128.43,66.05480108]
[1764675942006,1e-08,128.44,128.43,69.17407428]
[1764675942210,1e-08,128.44,128.43,74.49263951]
[1764675942810,1e-08,128.44,128.43,65.91263951]
[1764675943318,1e-08,128.44,128.43,73.69898226]
[1764675944209,1e-08,128.44,128.43,70.29634275]
[1764675945616,1e-08,128.44,128.43,73.69898226]
[1764675951325,1e-08,128.44,128.43,72.98898226]
[1764675951740,0.67000001,128.44,128.42,61.8]
[1764675952252,0.67000001,128.44,128.42,69.58694413]
[1764675953512,1e-08,128.44,128.42,89.05431681]
[1764675953717,1e-08,128.44,128.43,4.12263951]
[1764675954142,1e-08,128.44,128.43,65.92263951]
[1764675954340,1e-08,128.44,128.43,66.06480108]
[1764675954545,1e-08,128.44,128.43,69.18431755]
[1764675955249,1e-08,128.44,128.43,85.5506603]
[1764675959224,0.1,128.45,128.44,61.79999999]
[1764675959538,0.1,128.45,128.44,73.70837603]
[1764675959945,0.1,128.45,128.44,76.82740601]
[1764675962552,0.1,128.45,128.44,93.13627001]
[1764675964753,0.1,128.45,128.44,89.87579207]
[1764675964943,0.1,128.45,128.44,93.27843158]
[1764675965728,0.1,128.45,128.44,70.30573652]
[1764675965958,0.1,128.45,128.44,73.70837603]
[1764675968455,0.1,128.45,128.44,69.58573652]
[1764675968760,0.77,128.45,128.44,69.58573652]
[1764675969135,0.77,128.45,128.44,61.79999999]
[1764675972543,20.76771483,128.45,128.42,61.79999999]
[1764675972755,17.36507532,128.45,128.42,61.79999999]
[1764675972963,4.06263951,128.44,128.42,61.79999999]
[1764675973452,0.66,128.43,128.42,61.79999999]
[1764675974474,8.80994492,128.42,128.39,61.79999999]
[1764675974661,3.40263951,128.41,128.37,69.58973579]
[1764675974847,11.85045762,128.41,128.37,61.79999999]
[1764675975042,0.66,128.4,128.37,61.79999999]
[1764675975243,0.66,128.4,128.37,69.5898211]
[1764675975858,0.66,128.42,128.38,4.10263951]
[1764675976147,0.66,128.42,128.38,0.7]
[1764675976345,11.84965299,128.42,128.37,69.5898211]
[1764675976651,11.84962852,128.42,128.37,69.5898211]
[1764675976963,0.66,128.41,128.37,70.2898211]
[1764675977786,0.66,128.41,128.37,86.5986851]
[1764675982770,8.80994492,128.4,128.37,85.8986851]
[1764675983184,0.66,128.39,128.37,85.8986851]
[1764675983982,17.25825798,128.4,128.37,85.8986851]
[1764675984560,0.66,128.41,128.38,0.7]
[1764675985473,0.66,128.41,128.38,8.48889859]
[1764675986089,2.1770986,128.42,128.38,7.78889859]
[1764675986275,2.8370986,128.44,128.39,2.8770986]
[1764675986470,11.4170986,128.44,128.39,64.67709859]
[1764675986669,23.50732649,128.45,128.42,2.1770986]
[1764675986869,0.1,128.45,128.42,2.1770986]
[1764675987169,0.1,128.45,128.43,0.7]
[1764675987565,0.1,128.45,128.44,2.1770986]
[1764675987766,0.1,128.45,128.44,2.8770986]
[1764675988264,0.1,128.45,128.44,11.59926017]
[1764675989582,0.1,128.45,128.44,19.3849967]
[1764675990296,0.1,128.45,128.44,27.1138607]
[1764675993700,0.1,128.45,128.44,193.3138607]
[1764675995683,0.1,128.45,128.44,177.0049967]
[1764675995887,1e-08,128.45,128.44,185.81494162]
[1764675996088,1e-08,128.47,128.46,87.16097049]
[1764675996303,1e-08,128.47,128.46,202.21806909]
[1764675996488,1e-08,128.47,128.46,202.90806909]
[1764675997074,0.1,128.48,128.47,24.09278242]
[1764675997279,1e-08,128.48,128.47,97.81198751]
[1764675997494,1e-08,128.48,128.47,89.00204259]
[1764675998504,1e-08,128.48,128.47,97.81198751]
[1764675999605,1e-08,128.49,128.48,25.26097049]
[1764675999902,1e-08,128.49,128.48,38.88516769]
[1764676001283,1e-08,128.49,128.48,46.66848026]
[1764676001710,1e-08,128.49,128.48,30.35961626]
[1764676001892,0.1,128.54,128.5,16.45102557]
[1764676002094,0.1,128.54,128.5,89.10812417]
[1764676002294,0.1,128.54,128.5,89.76812417]
[1764676003585,0.1,128.54,128.5,97.55022533]
[1764676004300,1e-08,128.51,128.5,106.36017025]
[1764676004509,1e-08,128.51,128.5,95.37312673]
[1764676004693,1e-08,128.51,128.5,97.55022533]
[1764676006184,1e-08,128.51,128.5,106.36017025]
[1764676007704,0.1,128.54,128.53,61.89999999]
[1764676007905,0.1,128.54,128.53,64.07709859]
[1764676008106,0.1,128.54,128.53,64.73709859]
[1764676009297,0.1,128.54,128.53,64.87926016]
[1764676009493,0.1,128.54,128.53,81.18812416]
[1764676009697,0.1,128.54,128.53,88.96840891]
[1764676010086,0.1,128.54,128.53,111.77186334]
[1764676013615,0.7,128.57,128.53,111.77186334]
[1764676013616,0.7,128.57,128.54,61.79999999]
[1764676013814,0.7,128.57,128.55,2.1770986]
[1764676014228,0.7,128.57,128.56,7.77846919]
[1764676016514,0.7,128.57,128.55,7.77896092]
[1764676019723,0.7,128.57,128.55,69.57896091]
[1764676020324,2.8770986,128.57,128.55,69.57896091]
[1764676020499,0.7,128.57,128.55,69.57896091]
[1764676022394,2.2770986,128.58,128.55,69.57896091]
[1764676022596,0.1,128.58,128.56,0.66]
[1764676023933,0.1,128.58,128.57,7.77786419]
[1764676024108,0.1,128.58,128.57,69.57786418]
[1764676024507,0.8,128.58,128.57,69.57786418]
[1764676024733,2.9770986,128.58,128.57,61.79999999]
[1764676028536,2.9770986,128.58,128.56,69.57833538]
[1764676028828,0.7,128.57,128.56,69.57833538]
[1764676029427,2.9770986,128.58,128.56,69.57833538]
[1764676029627,0.7,128.57,128.56,69.57833538]
[1764676033039,2.8770986,128.57,128.56,61.79999999]
[1764676034538,2.8770986,128.57,128.55,7.77890687]
[1764676035134,2.1770986,128.57,128.55,7.77890687]
[1764676035335,2.1770986,128.57,128.55,8.45890687]
[1764676036018,2.1770986,128.57,128.55,7.77890687]
[1764676036019,2.8670986,128.57,128.55,7.77890687]
[1764676040039,2.5441972,128.57,128.55,7.77890687]
[1764676040354,3.7603506,128.57,128.55,69.57890686]
[1764676043338,3.393252,128.57,128.55,70.25890686]
[1764676044548,3.393252,128.57,128.55,69.57890686]
[1764676044756,3.773252,128.57,128.55,69.57890686]
[1764676045155,3.393252,128.57,128.55,69.57890686]
[1764676045451,8.68,128.58,128.55,70.25890686]
[1764676045631,12.453252,128.58,128.55,70.25890686]
[1764676047543,9.06,128.58,128.55,70.25890686]
[1764676047733,12.073252,128.58,128.55,89.02659258]
[1764676047937,12.073252,128.58,128.56,0.68]
[1764676049239,3.393252,128.57,128.55,70.25890686]
[1764676050143,8.68,128.58,128.56,0.68]
[1764676050537,0.1,128.58,128.57,16.308864]
[1764676050739,0.1,128.58,128.57,78.10886399]
[1764676050950,0.1,128.58,128.57,82.18211599]
[1764676051455,0.1,128.6,128.58,61.69999999]
[1764676051653,0.1,128.6,128.58,62.37999999]
[1764676051852,0.1,128.6,128.59,0.68]
[1764676052762,0.1,128.6,128.59,0.7]
[1764676053166,0.1,128.6,128.58,70.17686175]
[1764676053363,0.1,128.6,128.59,0.7]
[1764676054579,0.1,128.6,128.59,8.47665448]
[1764676054882,0.1,128.6,128.59,0.7]
[1764676055201,0.1,128.6,128.59,70.17665447]
[1764676055990,0.1,128.6,128.59,61.69999999]
[1764676056202,3.493252,128.6,128.59,61.69999999]
[1764676056515,3.873252,128.6,128.59,61.69999999]
[1764676056658,3.493252,128.6,128.59,61.69999999]
[1764676058892,0.1,128.6,128.59,70.17665447]
[1764676059785,12.68319692,128.6,128.56,62.39999999]
[1764676060083,3.393252,128.57,128.56,62.39999999]
[1764676060295,3.393252,128.58,128.56,62.39999999]
[1764676060876,11.953252,128.59,128.56,70.17846918]
[1764676061479,3.393252,128.58,128.56,70.17846918]
[1764676061676,3.393252,128.57,128.54,62.34999999]
[1764676061882,3.393252,128.56,128.54,62.34999999]
[1764676062082,3.393252,128.57,128.54,62.34999999]
[1764676062281,3.393252,128.57,128.55,0.65]
[1764676063005,11.953252,128.56,128.54,69.47929642]
[1764676063384,11.953252,128.56,128.55,0.65]
[1764676063894,8.56,128.56,128.55,0.65]
[1764676064298,11.953252,128.56,128.54,70.12929642]
[1764676064676,8.56,128.56,128.54,70.12929642]
[1764676064874,8.56,128.56,128.55,0.65]
[1764676065607,11.953252,128.56,128.54,69.47929642]
[1764676065800,11.953252,128.56,128.54,70.12929642]
[1764676067604,12.333252,128.56,128.54,69.47929642]
[1764676067818,3.393252,128.55,128.54,69.47929642]
[1764676068102,11.953252,128.56,128.54,69.47929642]
[1764676068911,11.953252,128.56,128.54,70.12929642]
[1764676069093,11.953252,128.56,128.54,69.47929642]
[1764676069904,11.953252,128.56,128.55,0.65]
[1764676069905,8.56,128.56,128.55,0.65]
[1764676071601,11.973252,128.58,128.55,0.65]
[1764676071796,11.973252,128.58,128.54,69.47929642]
[1764676071797,3.393252,128.57,128.54,69.47929642]
[1764676072004,3.393252,128.57,128.54,62.34999999]
[1764676072005,11.55115822,128.57,128.54,62.34999999]
[1764676072204,11.17115822,128.57,128.54,62.34999999]
[1764676072914,3.393252,128.56,128.54,62.34999999]
[1764676073117,3.393252,128.56,128.55,0.65]
[1764676074615,3.393252,128.57,128.55,0.65]
[1764676077016,3.393252,128.57,128.54,62.34999999]
[1764676077219,3.393252,128.57,128.54,69.47963784]
[1764676077407,3.393252,128.57,128.55,0.65]
[1764676078920,3.393252,128.57,128.55,62.34999999]
[1764676079411,11.17112948,128.57,128.55,61.69999999]
[1764676079821,3.393252,128.56,128.55,61.69999999]
[1764676080125,3.773252,128.56,128.55,61.69999999]
[1764676080331,3.393252,128.56,128.55,61.69999999]
[1764676082296,3.393252,128.57,128.55,69.47907428]
[1764676082500,11.973252,128.58,128.56,0.65]
[1764676083136,12.353252,128.58,128.55,69.47907428]
[1764676083312,12.353252,128.58,128.55,70.12907428]
[1764676083513,11.973252,128.58,128.56,8.428454]
[1764676083722,11.973252,128.58,128.56,7.778454]
[1764676084538,3.393252,128.57,128.56,7.778454]
[1764676085136,3.393252,128.57,128.56,69.47845399]
[1764676085712,3.393252,128.57,128.56,70.12845399]
[1764676086033,11.973252,128.58,128.56,70.12845399]
[1764676086236,8.58,128.58,128.57,0.65]
[1764676086550,0.1,128.6,128.57,0.65]
[1764676087520,0.1,128.6,128.58,7.77725929]
[1764676087734,3.493252,128.6,128.58,7.77725929]
[1764676088056,3.493252,128.6,128.58,8.42725929]
[1764676090146,3.493252,128.6,128.58,0.65]
[1764676090776,0.1,128.6,128.58,8.42718219]
[1764676091072,0.1,128.6,128.58,0.65]
[1764676091457,0.1,128.6,128.58,8.42722755]
[1764676094660,3.493252,128.6,128.58,8.42722755]
[1764676094964,3.393252,128.59,128.57,0.66]
[1764676095351,12.353252,128.58,128.55,0.66]
[1764676095545,3.393252,128.57,128.55,0.66]
[1764676095946,3.393252,128.57,128.54,62.56]
[1764676096150,3.393252,128.57,128.54,0.66]
[1764676097062,3.393252,128.57,128.55,7.77907429]
[1764676097558,3.393252,128.57,128.55,8.43907429]
[1764676100379,2.17167004,128.57,128.55,8.43907429]
[1764676102172,2.17167004,128.57,128.54,7.77967947]
[1764676102362,2.17167004,128.57,128.54,8.46967947]
[1764676102682,2.17167004,128.57,128.55,0.69]
[1764676103688,2.17167004,128.56,128.54,8.46967947]
[1764676104182,2.17167004,128.56,128.54,70.36967947]
[1764676106881,18.75948534,128.57,128.54,69.67967947]
[1764676107064,18.75948534,128.57,128.55,0.69]
[1764676107468,18.75948534,128.57,128.54,69.67967947]
[1764676107781,18.75948534,128.57,128.54,70.36967947]
[1764676108985,19.13948534,128.57,128.54,70.36967947]
[1764676109562,2.17167004,128.56,128.54,70.36967947]
[1764676111972,2.55167004,128.56,128.54,61.9]
[1764676112260,2.17167004,128.56,128.54,61.9]
[1764676112464,2.17167004,128.56,128.54,70.36960891]
[1764676116703,16.5878153,128.57,128.54,70.36960891]
[1764676116900,2.17167004,128.56,128.54,70.36960891]
[1764676117496,10.98161496,128.57,128.54,70.36960891]
[1764676117983,18.75952143,128.57,128.54,70.36960891]
[1764676118182,19.13952143,128.57,128.54,70.36960891]
[1764676118582,18.75952143,128.57,128.55,0.67]
[1764676118985,18.75952143,128.57,128.54,70.34960891]
[1764676119979,8.58,128.56,128.54,70.34960891]
[1764676121905,10.75167004,128.56,128.54,70.34960891]
[1764676122503,10.75167004,128.56,128.53,7.78000726]
[1764676122504,2.55167004,128.55,128.53,7.78000726]
[1764676122697,2.17167004,128.54,128.53,8.45000726]
[1764676122892,2.17167004,128.54,128.53,70.35000726]
[1764676123096,2.17167004,128.54,128.53,61.9]
[1764676123304,2.17167004,128.54,128.5,19.45471435]
[1764676123305,11.13167004,128.54,128.51,7.78138178]
[1764676123487,2.17167004,128.52,128.51,8.45138178]
[1764676124082,8.58,128.54,128.51,8.45138178]
[1764676124388,2.17167004,128.53,128.51,8.45138178]
[1764676126510,2.17167004,128.53,128.51,70.35138178]
[1764676127500,2.17167004,128.53,128.51,69.68138178]
[1764676127709,2.17167004,128.53,128.52,0.67]
[1764676127884,2.17167004,128.53,128.51,70.35138178]
[1764676128213,18.53135127,128.54,128.51,70.35138178]
[1764676128395,18.91135127,128.54,128.51,70.35138178]
[1764676129913,2.17167004,128.52,128.51,70.35138178]
[1764676130108,2.17167004,128.52,128.5,0.67]
[1764676130109,10.98161496,128.52,128.5,0.67]
[1764676130307,2.17167004,128.51,128.49,0.67]
[1764676131290,8.58,128.51,128.49,0.67]
[1764676132203,18.5332437,128.51,128.49,0.67]
[1764676134619,18.5332437,128.51,128.47,62.57]
[1764676134620,18.9132437,128.51,128.47,62.57]
[1764676134803,18.9132437,128.51,128.48,0.67]
[1764676135317,18.5332437,128.51,128.48,0.67]
[1764676137301,8.58,128.56,128.52,0.67]
[1764676137499,16.35851414,128.56,128.53,7.78028475]
[1764676138008,8.58,128.56,128.53,7.78028475]
[1764676138525,8.58,128.56,128.54,0.67]
[1764676140500,7.77816106,128.57,128.54,8.44949533]
[1764676140701,16.35816106,128.57,128.54,8.44949533]
[1764676141001,16.35816106,128.57,128.55,0.67]
[1764676142521,8.58,128.57,128.55,0.67]
[1764676143311,8.58,128.57,128.54,7.77949533]
[1764676143495,18.52976819,128.57,128.54,8.44949533]
[1764676143698,18.90976819,128.57,128.54,7.77949533]
[1764676143921,18.90976819,128.57,128.54,8.44949533]
[1764676144128,18.90976819,128.57,128.54,7.77949533]
[1764676144338,11.36161496,128.56,128.52,89.80200809]
[1764676144496,19.14025346,128.56,128.53,0.67]
[1764676145112,8.58,128.55,128.53,0.67]
[1764676146329,10.75167004,128.55,128.53,0.67]
[1764676147903,10.75167004,128.55,128.53,8.45023545]
[1764676148102,8.58,128.55,128.54,0.67]
[1764676149428,10.75167004,128.57,128.54,0.67]
[1764676149923,10.75167004,128.57,128.54,8.44943247]
[1764676150322,10.75167004,128.57,128.55,0.67]
[1764676153224,18.52963092,128.57,128.55,0.67]
[1764676155039,10.75167004,128.57,128.55,0.67]
[1764676155725,10.75167004,128.57,128.55,8.4487811]
[1764676156236,10.75167004,128.57,128.55,70.3487811]
[1764676156942,10.75167004,128.57,128.55,69.6787811]
[1764676157118,11.13167004,128.57,128.55,69.6787811]
[1764676157320,10.75167004,128.57,128.55,69.6787811]
[1764676157519,10.75167004,128.57,128.55,70.3787811]
[1764676157725,2.17167004,128.56,128.55,61.9]
[1764676157931,11.36161496,128.56,128.55,61.9]